[Event "Late-Titled-Tuesday-Blitz-March-19-2024"]
[Site "Chess.com"]
[Date "2024.03.19"]
[Round "3"]
[White "teresin05"]
[Black "Tugrik1969"]
[Result "0-1"]
[WhiteElo "2161"]
[BlackElo "2400"]
[TimeControl "180+1"]
[EndTime "14:29:52 PDT"]
[Termination "Tugrik1969 won by resignation"]

1. e4 {[%clk 0:02:57.2]} 1... c5 {[%clk 0:02:59.5]} 2. Nf3 {[%clk 0:02:55.5]}
2... d6 {[%clk 0:02:59.9]} 3. d4 {[%clk 0:02:55.1]} 3... cxd4 {[%clk 0:03:00.8]}
4. Nxd4 {[%clk 0:02:55.6]} 4... Nf6 {[%clk 0:03:00.9]} 5. f3 {[%clk 0:02:56.1]}
5... e5 {[%clk 0:02:59.5]} 6. Nb3 {[%clk 0:02:55.7]} 6... Be6 {[%clk 0:02:58.4]}
7. c4 {[%clk 0:02:55.5]} 7... Nbd7 {[%clk 0:02:58.3]} 8. Nc3 {[%clk 0:02:55.3]}
8... Rc8 {[%clk 0:02:53]} 9. Be3 {[%clk 0:02:53.4]} 9... a6 {[%clk 0:02:51.5]}
10. Nd5 {[%clk 0:02:47.5]} 10... Bxd5 {[%clk 0:02:11.3]} 11. cxd5 {[%clk
0:02:47.2]} 11... Nh5 {[%clk 0:01:59.6]} 12. g3 {[%clk 0:02:32]} 12... Be7
{[%clk 0:01:59.3]} 13. Be2 {[%clk 0:02:26]} 13... Bg5 {[%clk 0:01:55.9]} 14. Bf2
{[%clk 0:02:14.1]} 14... g6 {[%clk 0:01:51.3]} 15. O-O {[%clk 0:01:18]} 15...
Ng7 {[%clk 0:01:51]} 16. Nd2 {[%clk 0:01:01.7]} 16... Bxd2 {[%clk 0:01:38.9]}
17. Qxd2 {[%clk 0:00:47.7]} 17... h5 {[%clk 0:01:38.7]} 18. Rac1 {[%clk
0:00:47]} 18... Ke7 {[%clk 0:01:19.3]} 19. Be3 {[%clk 0:00:40]} 19... h4 {[%clk
0:01:00.7]} 20. g4 {[%clk 0:00:25.2]} 20... f6 {[%clk 0:00:56.4]} 21. Rxc8
{[%clk 0:00:21.6]} 21... Qxc8 {[%clk 0:00:57.3]} 22. Rc1 {[%clk 0:00:21.9]}
22... Qb8 {[%clk 0:00:57.8]} 23. f4 {[%clk 0:00:20.3]} 23... Rc8 {[%clk
0:00:55]} 24. fxe5 {[%clk 0:00:20]} 24... Rxc1+ {[%clk 0:00:38.5]} 25. Qxc1
{[%clk 0:00:20.9]} 25... Nxe5 {[%clk 0:00:38.9]} 26. g5 {[%clk 0:00:19.6]} 26...
f5 {[%clk 0:00:37.3]} 27. exf5 {[%clk 0:00:19.2]} 27... Nxf5 {[%clk 0:00:37.3]}
28. Bf2 {[%clk 0:00:13.4]} 28... Kd7 {[%clk 0:00:33.8]} 29. Qf4 {[%clk
0:00:13.6]} 29... Qc7 {[%clk 0:00:30.7]} 30. Bxh4 {[%clk 0:00:13.3]} 30... Qc2
{[%clk 0:00:28.8]} 31. Bg4 {[%clk 0:00:08.9]} 31... Nxg4 {[%clk 0:00:24.6]} 32.
Qxg4 {[%clk 0:00:09.8]} 32... Qxb2 {[%clk 0:00:22]} 33. Qe4 {[%clk 0:00:10.3]}
33... Qc1+ {[%clk 0:00:21]} 34. Be1 {[%clk 0:00:08.7]} 34... Qe3+ {[%clk
0:00:18]} 35. Qxe3 {[%clk 0:00:08.8]} 35... Nxe3 {[%clk 0:00:18.9]} 36. h4
{[%clk 0:00:08.3]} 36... Nxd5 {[%clk 0:00:18.7]} 37. Kf2 {[%clk 0:00:08]} 37...
Nf4 {[%clk 0:00:17.5]} 38. Kf3 {[%clk 0:00:08]} 38... Nh5 {[%clk 0:00:17.7]} 39.
Kg4 {[%clk 0:00:08]} 39... Ke6 {[%clk 0:00:18]} 40. Kf3 {[%clk 0:00:07.9]} 40...
Ke5 {[%clk 0:00:16.7]} 41. Bc3+ {[%clk 0:00:06.3]} 41... Kf5 {[%clk 0:00:16.9]}
42. Ke3 {[%clk 0:00:05.1]} 42... Ke6 {[%clk 0:00:15.6]} 43. Ke4 {[%clk 0:00:05]}
43... d5+ {[%clk 0:00:15.4]} 44. Kd4 {[%clk 0:00:05.2]} 44... Ng3 {[%clk
0:00:15.1]} 45. Be1 {[%clk 0:00:04.9]} 45... Nf5+ {[%clk 0:00:14]} 46. Kc5
{[%clk 0:00:05.6]} 46... d4 {[%clk 0:00:13.8]} 47. Kb6 {[%clk 0:00:05.7]} 47...
d3 {[%clk 0:00:13.9]} 48. Kxb7 {[%clk 0:00:05.1]} 48... Nxh4 {[%clk 0:00:12.8]}
49. Kxa6 {[%clk 0:00:04.4]} 49... Nf3 {[%clk 0:00:12.2]} 50. Bc3 {[%clk
0:00:04.4]} 50... d2 {[%clk 0:00:09.9]} 51. Bxd2 {[%clk 0:00:04.7]} 51... Nxd2
{[%clk 0:00:10.8]} 52. Kb5 {[%clk 0:00:03.9]} 52... Kd7 {[%clk 0:00:07.9]} 53.
a4 {[%clk 0:00:03.7]} 53... Nf3 {[%clk 0:00:07]} 54. a5 {[%clk 0:00:02.3]} 54...
Kc7 {[%clk 0:00:07.1]} 55. Kc5 {[%clk 0:00:02.4]} 55... Nxg5 {[%clk 0:00:06.7]}
56. Kd5 {[%clk 0:00:03.1]} 56... Nf7 {[%clk 0:00:06.6]} 57. Ke6 {[%clk 0:00:03]}
57... g5 {[%clk 0:00:06.4]} 58. Kf5 {[%clk 0:00:03.6]} 58... Kb7 {[%clk
0:00:06.6]} 59. Kg4 {[%clk 0:00:03.7]} 59... Ka6 {[%clk 0:00:07.1]} 60. Kf5
{[%clk 0:00:04.6]} 60... Kxa5 {[%clk 0:00:07.7]} 61. Kg4 {[%clk 0:00:05.5]}
61... Kb5 {[%clk 0:00:08.1]} 62. Kf5 {[%clk 0:00:05.9]} 62... Kc5 {[%clk
0:00:08.6]} 63. Kg4 {[%clk 0:00:06.8]} 63... Kd5 {[%clk 0:00:08.8]} 64. Kf5
{[%clk 0:00:07.3]} 64... Kd6 {[%clk 0:00:08.6]} 65. Kg4 {[%clk 0:00:07.3]} 65...
Ke6 {[%clk 0:00:09.1]} 66. Kf3 {[%clk 0:00:08]} 66... Kf5 {[%clk 0:00:09.2]} 67.
Kg3 {[%clk 0:00:08.7]} 67... g4 {[%clk 0:00:09.5]} 0-1

[Event "Late-Titled-Tuesday-Blitz-March-19-2024"]
[Site "Chess.com"]
[Date "2024.03.19"]
[Round "3"]
[White "Adar_07"]
[Black "WilsonPalencia21"]
[Result "0-1"]
[WhiteElo "2845"]
[BlackElo "2609"]
[TimeControl "180+1"]
[EndTime "14:29:57 PDT"]
[Termination "WilsonPalencia21 won by resignation"]

1. e4 {[%clk 0:02:57.2]} 1... c5 {[%clk 0:03:00]} 2. Nf3 {[%clk 0:02:56.2]} 2...
d6 {[%clk 0:03:00]} 3. Bb5+ {[%clk 0:02:54.1]} 3... Nd7 {[%clk 0:02:59.8]} 4.
O-O {[%clk 0:02:53.5]} 4... Nf6 {[%clk 0:02:59.6]} 5. Re1 {[%clk 0:02:53.3]}
5... a6 {[%clk 0:02:59.5]} 6. Bf1 {[%clk 0:02:50.6]} 6... b6 {[%clk 0:02:59.4]}
7. Nc3 {[%clk 0:02:45.9]} 7... Bb7 {[%clk 0:02:59.1]} 8. d4 {[%clk 0:02:46.1]}
8... cxd4 {[%clk 0:02:59]} 9. Nxd4 {[%clk 0:02:47]} 9... e6 {[%clk 0:02:55.1]}
10. g3 {[%clk 0:02:43.1]} 10... Rc8 {[%clk 0:02:53.9]} 11. Bg2 {[%clk
0:02:42.6]} 11... Qc7 {[%clk 0:02:54.2]} 12. Bg5 {[%clk 0:02:37.3]} 12... Be7
{[%clk 0:02:52.7]} 13. Bxf6 {[%clk 0:02:35.2]} 13... Nxf6 {[%clk 0:02:50.3]} 14.
g4 {[%clk 0:02:27.5]} 14... h6 {[%clk 0:02:32.1]} 15. h4 {[%clk 0:02:25.5]}
15... Nd7 {[%clk 0:01:47.3]} 16. Qf3 {[%clk 0:01:38.3]} 16... Bxh4 {[%clk
0:01:23.5]} 17. Rad1 {[%clk 0:01:24.9]} 17... Ne5 {[%clk 0:01:22.4]} 18. Qh3
{[%clk 0:01:16.2]} 18... Bg5 {[%clk 0:01:16.5]} 19. Qg3 {[%clk 0:01:15.2]} 19...
Ng6 {[%clk 0:01:06.1]} 20. Nf5 {[%clk 0:01:12.2]} 20... Bf4 {[%clk 0:00:58.5]}
21. Nxd6+ {[%clk 0:01:02.6]} 21... Kf8 {[%clk 0:00:57.8]} 22. Qd3 {[%clk
0:00:58.4]} 22... Rd8 {[%clk 0:00:54.4]} 23. Ndb5 {[%clk 0:00:41.6]} 23... Rxd3
{[%clk 0:00:53]} 24. Nxc7 {[%clk 0:00:41.3]} 24... Rxd1 {[%clk 0:00:46.9]} 25.
Rxd1 {[%clk 0:00:42.2]} 25... Ke7 {[%clk 0:00:43.6]} 26. e5 {[%clk 0:00:38]}
26... Bxg2 {[%clk 0:00:28.5]} 27. Kxg2 {[%clk 0:00:38.2]} 27... Bxe5 {[%clk
0:00:21.5]} 28. Nxa6 {[%clk 0:00:37.4]} 28... Rc8 {[%clk 0:00:20.6]} 29. Na4
{[%clk 0:00:19.8]} 29... Ra8 {[%clk 0:00:19.6]} 30. Nxb6 {[%clk 0:00:18.3]}
30... Rxa6 {[%clk 0:00:19.1]} 31. Rd7+ {[%clk 0:00:11.4]} 31... Kf6 {[%clk
0:00:18.9]} 32. Rb7 {[%clk 0:00:12.3]} 32... Rxa2 {[%clk 0:00:17.6]} 33. Nd7+
{[%clk 0:00:09.4]} 33... Kg5 {[%clk 0:00:17.7]} 34. Nc5 {[%clk 0:00:09.9]} 34...
Rxb2 {[%clk 0:00:15.9]} 35. Rxf7 {[%clk 0:00:10.1]} 35... Nf4+ {[%clk
0:00:13.1]} 36. Kf3 {[%clk 0:00:06.4]} 36... Rxc2 {[%clk 0:00:13.2]} 37. Ne4+
{[%clk 0:00:06]} 37... Kg6 {[%clk 0:00:12.9]} 38. Rxf4 {[%clk 0:00:04.6]} 38...
Bxf4 {[%clk 0:00:13.1]} 39. Kxf4 {[%clk 0:00:05.5]} 39... Rc4 {[%clk 0:00:13]}
40. f3 {[%clk 0:00:05.1]} 40... Kf7 {[%clk 0:00:12.4]} 41. Ke5 {[%clk
0:00:05.5]} 41... Ra4 {[%clk 0:00:12.7]} 42. Nd6+ {[%clk 0:00:04.4]} 42... Ke7
{[%clk 0:00:13.2]} 43. Ne4 {[%clk 0:00:05.1]} 43... Ra5+ {[%clk 0:00:12.9]} 44.
Kf4 {[%clk 0:00:05.2]} 44... g6 {[%clk 0:00:13.2]} 45. Nf2 {[%clk 0:00:02.2]}
45... Ra4+ {[%clk 0:00:12.3]} 46. Kg3 {[%clk 0:00:02.6]} 46... Kf6 {[%clk
0:00:11.4]} 47. Nd3 {[%clk 0:00:02.4]} 47... e5 {[%clk 0:00:11.3]} 48. Nc5
{[%clk 0:00:02.5]} 48... Ra3 {[%clk 0:00:11.6]} 49. Nd7+ {[%clk 0:00:02.6]}
49... Ke6 {[%clk 0:00:11.6]} 50. Nc5+ {[%clk 0:00:02.8]} 50... Kf7 {[%clk
0:00:11.5]} 51. Nd7 {[%clk 0:00:02.4]} 51... Ra5 {[%clk 0:00:11.3]} 52. Nb6
{[%clk 0:00:02.3]} 52... Rc5 {[%clk 0:00:11.1]} 53. Nd7 {[%clk 0:00:02.1]} 53...
Rd5 {[%clk 0:00:09.8]} 54. Nb6 {[%clk 0:00:02.2]} 54... Rb5 {[%clk 0:00:10.2]}
55. Nc4 {[%clk 0:00:02.4]} 55... Ke6 {[%clk 0:00:10.7]} 56. Nd2 {[%clk
0:00:02.6]} 56... Rb4 {[%clk 0:00:10.7]} 57. Nf1 {[%clk 0:00:02.7]} 57... Rb3
{[%clk 0:00:10.1]} 58. Nd2 {[%clk 0:00:02.6]} 58... Re3 {[%clk 0:00:10.5]} 59.
Nc4 {[%clk 0:00:02.7]} 59... Rc3 {[%clk 0:00:10.6]} 60. Nd2 {[%clk 0:00:03.4]}
60... Kd5 {[%clk 0:00:10.3]} 61. Ne4 {[%clk 0:00:03.5]} 61... Rc4 {[%clk
0:00:09.6]} 62. Nf6+ {[%clk 0:00:03.7]} 62... Ke6 {[%clk 0:00:10.1]} 63. Ne4
{[%clk 0:00:03.4]} 63... Rxe4 {[%clk 0:00:10.4]} 64. fxe4 {[%clk 0:00:03.9]}
64... Kd6 {[%clk 0:00:10.8]} 65. g5 {[%clk 0:00:04.1]} 65... h5 {[%clk
0:00:10.1]} 66. Kf3 {[%clk 0:00:04.5]} 66... Kc5 {[%clk 0:00:09.8]} 67. Ke3
{[%clk 0:00:05.1]} 67... Kc4 {[%clk 0:00:10.2]} 68. Ke2 {[%clk 0:00:04.9]} 68...
Kd4 {[%clk 0:00:10.2]} 69. Kf3 {[%clk 0:00:05.6]} 69... Kd3 {[%clk 0:00:10.7]}
70. Kg3 {[%clk 0:00:06.2]} 70... Kxe4 {[%clk 0:00:11.1]} 71. Kh4 {[%clk
0:00:06.9]} 71... Kf4 {[%clk 0:00:11.1]} 72. Kh3 {[%clk 0:00:07.8]} 72... Kxg5
{[%clk 0:00:11.5]} 73. Kg3 {[%clk 0:00:08.7]} 73... Kf5 {[%clk 0:00:11.8]} 74.
Kh3 {[%clk 0:00:09.6]} 74... g5 {[%clk 0:00:12.1]} 75. Kg2 {[%clk 0:00:10.5]}
75... e4 {[%clk 0:00:12.6]} 76. Kg3 {[%clk 0:00:11.4]} 76... Ke5 {[%clk
0:00:12.9]} 77. Kh3 {[%clk 0:00:11.6]} 77... Kf4 {[%clk 0:00:13.5]} 78. Kg2
{[%clk 0:00:12]} 78... h4 {[%clk 0:00:13.9]} 79. Kh3 {[%clk 0:00:12.3]} 79... e3
{[%clk 0:00:14.2]} 80. Kg2 {[%clk 0:00:12.7]} 80... g4 {[%clk 0:00:14.6]} 81.
Kf1 {[%clk 0:00:12.9]} 81... Kf3 {[%clk 0:00:15]} 82. Kg1 {[%clk 0:00:11.7]}
82... e2 {[%clk 0:00:15]} 83. Kh2 {[%clk 0:00:12.3]} 83... g3+ {[%clk 0:00:15]}
0-1

[Event "Late-Titled-Tuesday-Blitz-March-19-2024"]
[Site "Chess.com"]
[Date "2024.03.19"]
[Round "3"]
[White "TheRigos"]
[Black "Alex_Sahakyan2006"]
[Result "0-1"]
[WhiteElo "2555"]
[BlackElo "2809"]
[TimeControl "180+1"]
[EndTime "14:30:00 PDT"]
[Termination "Alex_Sahakyan2006 won on time"]

1. d4 {[%clk 0:03:00.9]} 1... Nf6 {[%clk 0:02:57.8]} 2. c4 {[%clk 0:03:00.6]}
2... g6 {[%clk 0:02:58.3]} 3. Nc3 {[%clk 0:03:00.5]} 3... Bg7 {[%clk 0:02:58.4]}
4. e4 {[%clk 0:03:01.2]} 4... d6 {[%clk 0:02:59]} 5. h3 {[%clk 0:03:01.6]} 5...
O-O {[%clk 0:02:58.6]} 6. Be3 {[%clk 0:03:02.2]} 6... c5 {[%clk 0:02:57.9]} 7.
Nf3 {[%clk 0:03:01]} 7... Nbd7 {[%clk 0:02:54.2]} 8. Be2 {[%clk 0:02:59.4]} 8...
cxd4 {[%clk 0:02:51.3]} 9. Nxd4 {[%clk 0:02:54.8]} 9... Nc5 {[%clk 0:02:50.2]}
10. Qc2 {[%clk 0:02:54.8]} 10... Bd7 {[%clk 0:02:13.5]} 11. O-O {[%clk
0:02:53.3]} 11... Rc8 {[%clk 0:02:13.8]} 12. Rac1 {[%clk 0:02:38]} 12... a6
{[%clk 0:02:08.7]} 13. b4 {[%clk 0:02:09.6]} 13... Ne6 {[%clk 0:02:04.1]} 14.
Qd2 {[%clk 0:01:29.9]} 14... Nxd4 {[%clk 0:01:51.3]} 15. Bxd4 {[%clk 0:01:29]}
15... Be6 {[%clk 0:01:51.6]} 16. Bxf6 {[%clk 0:00:53.4]} 16... Bxf6 {[%clk
0:01:51]} 17. Nd5 {[%clk 0:00:54.3]} 17... Bxd5 {[%clk 0:01:45.9]} 18. cxd5
{[%clk 0:00:40.2]} 18... Qb6 {[%clk 0:01:43]} 19. Bg4 {[%clk 0:00:36.9]} 19...
Rxc1 {[%clk 0:01:36.8]} 20. Rxc1 {[%clk 0:00:37.8]} 20... h5 {[%clk 0:01:37]}
21. Be2 {[%clk 0:00:30.5]} 21... Kg7 {[%clk 0:01:25]} 22. a3 {[%clk 0:00:30.6]}
22... Ra8 {[%clk 0:01:22.1]} 23. g3 {[%clk 0:00:28.2]} 23... a5 {[%clk
0:01:15.8]} 24. b5 {[%clk 0:00:28.1]} 24... a4 {[%clk 0:01:13.1]} 25. Kg2 {[%clk
0:00:27.7]} 25... Bd4 {[%clk 0:01:13.2]} 26. Bf1 {[%clk 0:00:14.7]} 26... h4
{[%clk 0:01:13.1]} 27. Rc4 {[%clk 0:00:14]} 27... Bf6 {[%clk 0:01:10.3]} 28. g4
{[%clk 0:00:13.2]} 28... Kg8 {[%clk 0:01:01.9]} 29. Rc2 {[%clk 0:00:10.4]} 29...
Re8 {[%clk 0:00:46]} 30. Qe3 {[%clk 0:00:09.5]} 30... Bd4 {[%clk 0:00:41.4]} 31.
Qg5 {[%clk 0:00:09.6]} 31... Bf6 {[%clk 0:00:40.9]} 32. Qe3 {[%clk 0:00:09.5]}
32... Qa5 {[%clk 0:00:26.6]} 33. Be2 {[%clk 0:00:09.9]} 33... Qe1 {[%clk
0:00:24.8]} 34. Bf1 {[%clk 0:00:08.3]} 34... Qxe3 {[%clk 0:00:22.3]} 35. fxe3
{[%clk 0:00:08.5]} 35... e6 {[%clk 0:00:19.2]} 36. dxe6 {[%clk 0:00:06.4]} 36...
Rxe6 {[%clk 0:00:20.1]} 37. Kf3 {[%clk 0:00:06.5]} 37... Re5 {[%clk 0:00:20.3]}
38. Rc7 {[%clk 0:00:06.1]} 38... b6 {[%clk 0:00:19.6]} 39. Rc6 {[%clk
0:00:06.2]} 39... Bd8 {[%clk 0:00:15.6]} 40. Rxd6 {[%clk 0:00:05.7]} 40... Re8
{[%clk 0:00:12.4]} 41. Bc4 {[%clk 0:00:06.3]} 41... Rf8 {[%clk 0:00:07.8]} 42.
Rxg6+ {[%clk 0:00:06.3]} 42... Kh7 {[%clk 0:00:07.6]} 43. Rd6 {[%clk 0:00:06.3]}
43... Kg7 {[%clk 0:00:07.5]} 44. Rd7 {[%clk 0:00:06.7]} 44... Kf6 {[%clk
0:00:07.3]} 45. Kf4 {[%clk 0:00:04.9]} 45... Kg6 {[%clk 0:00:06.8]} 46. e5
{[%clk 0:00:05.1]} 46... Bg5+ {[%clk 0:00:06.6]} 47. Ke4 {[%clk 0:00:05.2]}
47... f6 {[%clk 0:00:06.8]} 48. Be6 {[%clk 0:00:04.2]} 48... fxe5 {[%clk
0:00:06.4]} 49. Bf5+ {[%clk 0:00:04.8]} 49... Kf6 {[%clk 0:00:06.9]} 50. Rd6+
{[%clk 0:00:05.4]} 50... Ke7 {[%clk 0:00:07.3]} 51. Re6+ {[%clk 0:00:05.3]}
51... Kf7 {[%clk 0:00:07.9]} 52. Rxb6 {[%clk 0:00:05.3]} 52... Rd8 {[%clk
0:00:06.4]} 53. Rb7+ {[%clk 0:00:05]} 53... Kf6 {[%clk 0:00:06.5]} 54. Rb6+
{[%clk 0:00:05.6]} 54... Kf7 {[%clk 0:00:06.8]} 55. Rb7+ {[%clk 0:00:05.7]}
55... Kf6 {[%clk 0:00:06.9]} 56. b6 {[%clk 0:00:06.6]} 56... Rd2 {[%clk
0:00:04.8]} 57. Rc7 {[%clk 0:00:06.7]} 57... Rb2 {[%clk 0:00:04.8]} 58. b7
{[%clk 0:00:06.3]} 58... Rb3 {[%clk 0:00:05]} 59. Bc8 {[%clk 0:00:05.4]} 59...
Rxe3+ {[%clk 0:00:04.6]} 60. Kd5 {[%clk 0:00:06]} 60... Rb3 {[%clk 0:00:05.5]}
61. Kc5 {[%clk 0:00:04.3]} 61... Be3+ {[%clk 0:00:04.5]} 62. Kd5 {[%clk
0:00:01.8]} 62... Kg5 {[%clk 0:00:04.9]} 63. Rg7+ {[%clk 0:00:01.5]} 63... Kf4
{[%clk 0:00:04.9]} 64. Rf7+ {[%clk 0:00:02.4]} 64... Kg3 {[%clk 0:00:04.7]} 65.
g5 {[%clk 0:00:03.3]} 65... Bxg5 {[%clk 0:00:04.6]} 66. Kxe5 {[%clk 0:00:03.7]}
66... Bc1 {[%clk 0:00:01.5]} 67. Rg7+ {[%clk 0:00:04]} 67... Kh2 {[%clk
0:00:01.5]} 68. Rf7 {[%clk 0:00:03.2]} 68... Bxa3 {[%clk 0:00:01.7]} 69. Kd5
{[%clk 0:00:03]} 69... Bb2 {[%clk 0:00:01.3]} 70. Rf2+ {[%clk 0:00:03]} 70...
Kg3 {[%clk 0:00:01.3]} 71. Re2 {[%clk 0:00:01.6]} 71... a3 {[%clk 0:00:01.7]}
72. Re4 {[%clk 0:00:02.5]} 72... a2 {[%clk 0:00:01.4]} 73. Ra4 {[%clk
0:00:03.4]} 73... a1=Q {[%clk 0:00:01.4]} 74. Rxa1 {[%clk 0:00:04]} 74... Bxa1
{[%clk 0:00:02.3]} 75. Kc6 {[%clk 0:00:04.8]} 75... Rb1 {[%clk 0:00:02.9]} 0-1

[Event "Late-Titled-Tuesday-Blitz-March-19-2024"]
[Site "Chess.com"]
[Date "2024.03.19"]
[Round "3"]
[White "bubeliang"]
[Black "liwadas82"]
[Result "1-0"]
[WhiteElo "2796"]
[BlackElo "2525"]
[TimeControl "180+1"]
[EndTime "14:30:58 PDT"]
[Termination "bubeliang won by resignation"]

1. d4 {[%clk 0:03:00.9]} 1... Nf6 {[%clk 0:02:59.3]} 2. Nc3 {[%clk 0:03:00.8]}
2... e6 {[%clk 0:02:59.9]} 3. e4 {[%clk 0:02:58]} 3... d5 {[%clk 0:02:58.8]} 4.
e5 {[%clk 0:02:57.8]} 4... Nfd7 {[%clk 0:02:59]} 5. f4 {[%clk 0:02:58.3]} 5...
c5 {[%clk 0:02:58.4]} 6. Nf3 {[%clk 0:02:58.4]} 6... Nc6 {[%clk 0:02:56.5]} 7.
Be3 {[%clk 0:02:57.5]} 7... a6 {[%clk 0:02:51.8]} 8. Ne2 {[%clk 0:02:57]} 8...
b5 {[%clk 0:02:49.7]} 9. c3 {[%clk 0:02:56.7]} 9... Qb6 {[%clk 0:02:42.7]} 10.
g4 {[%clk 0:02:48.8]} 10... h5 {[%clk 0:02:40.7]} 11. gxh5 {[%clk 0:02:43.2]}
11... Rxh5 {[%clk 0:02:35.2]} 12. Ng3 {[%clk 0:02:41]} 12... Rh8 {[%clk
0:02:33.1]} 13. Bd3 {[%clk 0:02:37.2]} 13... g6 {[%clk 0:02:27.3]} 14. Kf2
{[%clk 0:02:33]} 14... cxd4 {[%clk 0:02:19.5]} 15. cxd4 {[%clk 0:02:31.7]} 15...
Bb7 {[%clk 0:02:06.4]} 16. Rc1 {[%clk 0:02:31.1]} 16... Be7 {[%clk 0:01:58.2]}
17. h4 {[%clk 0:02:29.3]} 17... O-O-O {[%clk 0:01:56.2]} 18. Ng5 {[%clk
0:02:26.2]} 18... Bxg5 {[%clk 0:01:45.5]} 19. hxg5 {[%clk 0:02:27.1]} 19... Kb8
{[%clk 0:01:45.1]} 20. Ne2 {[%clk 0:02:22.8]} 20... Ne7 {[%clk 0:01:42.5]} 21.
Rh6 {[%clk 0:02:20.4]} 21... Nf5 {[%clk 0:01:35.7]} 22. Bxf5 {[%clk 0:02:13.9]}
22... exf5 {[%clk 0:01:35.4]} 23. Qh1 {[%clk 0:02:12.7]} 23... Rhf8 {[%clk
0:01:33.4]} 24. Rh7 {[%clk 0:02:01.5]} 24... Qa5 {[%clk 0:01:22.6]} 25. a3
{[%clk 0:02:00.2]} 25... Nb6 {[%clk 0:01:22.1]} 26. Qe1 {[%clk 0:01:47.8]} 26...
Qxe1+ {[%clk 0:01:18]} 27. Rxe1 {[%clk 0:01:47.1]} 27... Bc8 {[%clk 0:01:15.4]}
28. Bd2 {[%clk 0:01:45.6]} 28... Be6 {[%clk 0:01:14.1]} 29. Bb4 {[%clk
0:01:45.5]} 29... Rfe8 {[%clk 0:01:13.5]} 30. b3 {[%clk 0:01:39.8]} 30... Rc8
{[%clk 0:01:11.8]} 31. Bc5 {[%clk 0:01:37.4]} 31... Nd7 {[%clk 0:01:10.9]} 32.
b4 {[%clk 0:01:37.1]} 32... Rc6 {[%clk 0:00:53.7]} 33. Nc1 {[%clk 0:01:35.3]}
33... a5 {[%clk 0:00:42.4]} 34. Nb3 {[%clk 0:01:27.1]} 34... a4 {[%clk
0:00:42.4]} 35. Nc1 {[%clk 0:01:15.4]} 35... Rcc8 {[%clk 0:00:35.5]} 36. Nd3
{[%clk 0:01:14.7]} 36... Rc6 {[%clk 0:00:35]} 37. Reh1 {[%clk 0:01:13.7]} 37...
Rcc8 {[%clk 0:00:35.1]} 38. Ke3 {[%clk 0:01:13.8]} 38... Kb7 {[%clk 0:00:33.9]}
39. Rg7 {[%clk 0:01:12.3]} 39... Rh8 {[%clk 0:00:29.6]} 40. Rhh7 {[%clk
0:01:12.1]} 40... Rxh7 {[%clk 0:00:29.2]} 41. Rxh7 {[%clk 0:01:13]} 41... Kc6
{[%clk 0:00:27.7]} 42. Ne1 {[%clk 0:01:06.1]} 42... Kb7 {[%clk 0:00:26.8]} 43.
Nf3 {[%clk 0:01:06.1]} 43... Kc6 {[%clk 0:00:26.7]} 44. Ne1 {[%clk 0:00:56.1]}
44... Kb7 {[%clk 0:00:26.7]} 45. Nd3 {[%clk 0:00:56.2]} 45... Kc6 {[%clk
0:00:27]} 46. Rh1 {[%clk 0:00:54.7]} 46... Kb7 {[%clk 0:00:26.9]} 47. Rh2 {[%clk
0:00:54.1]} 47... Kc6 {[%clk 0:00:25.6]} 48. Rh6 {[%clk 0:00:36.6]} 48... Kb7
{[%clk 0:00:25.7]} 49. Ne1 {[%clk 0:00:37.2]} 49... Kc6 {[%clk 0:00:25.7]} 50.
Nf3 {[%clk 0:00:37.8]} 50... Kb7 {[%clk 0:00:26]} 51. Nh4 {[%clk 0:00:38.1]}
51... Kc6 {[%clk 0:00:24.8]} 52. Rh7 {[%clk 0:00:31]} 52... Kb7 {[%clk 0:00:24]}
53. Kf3 {[%clk 0:00:29.6]} 53... Kc6 {[%clk 0:00:24.2]} 54. Kg3 {[%clk
0:00:22.5]} 54... Rg8 {[%clk 0:00:23.3]} 55. Ng2 {[%clk 0:00:20.7]} 55... Kb7
{[%clk 0:00:23.5]} 56. Ne1 {[%clk 0:00:20.4]} 56... Kc6 {[%clk 0:00:23.5]} 57.
Bd6 {[%clk 0:00:19.9]} 57... Kb7 {[%clk 0:00:20.6]} 58. Nd3 {[%clk 0:00:20.3]}
58... Rc8 {[%clk 0:00:19.9]} 59. Nc5+ {[%clk 0:00:19.9]} 59... Nxc5 {[%clk
0:00:19.7]} 60. dxc5 {[%clk 0:00:17.5]} 60... Kc6 {[%clk 0:00:18.9]} 61. Kf2
{[%clk 0:00:17.7]} 61... d4 {[%clk 0:00:17.8]} 62. Ke2 {[%clk 0:00:16.7]} 62...
Bc4+ {[%clk 0:00:15.8]} 63. Kd2 {[%clk 0:00:17.1]} 63... Be6 {[%clk 0:00:15.1]}
64. Kd3 {[%clk 0:00:17]} 64... Kd5 {[%clk 0:00:15.5]} 65. Rh6 {[%clk 0:00:15.6]}
65... Rd8 {[%clk 0:00:14.9]} 66. Be7 {[%clk 0:00:15.8]} 66... Rd7 {[%clk
0:00:14.6]} 67. Bf6 {[%clk 0:00:16.3]} 67... Rc7 {[%clk 0:00:13.3]} 68. Rh8
{[%clk 0:00:16.4]} 68... Kc6 {[%clk 0:00:12.4]} 69. Kxd4 {[%clk 0:00:12.7]}
69... Rd7+ {[%clk 0:00:12.5]} 70. Ke3 {[%clk 0:00:13.1]} 70... Bc4 {[%clk
0:00:12.9]} 71. Rb8 {[%clk 0:00:10.7]} 71... Rd3+ {[%clk 0:00:11.8]} 72. Kf2
{[%clk 0:00:11.3]} 72... Rxa3 {[%clk 0:00:11.6]} 73. Rb6+ {[%clk 0:00:12]} 73...
Kd5 {[%clk 0:00:11.9]} 74. c6 {[%clk 0:00:10.7]} 74... Ke4 {[%clk 0:00:12.5]}
75. c7 {[%clk 0:00:10.2]} 75... Ra2+ {[%clk 0:00:12.6]} 76. Kg3 {[%clk
0:00:09.4]} 76... Ra3+ {[%clk 0:00:12.2]} 77. Kf2 {[%clk 0:00:04.9]} 77... Ra2+
{[%clk 0:00:11.5]} 78. Ke1 {[%clk 0:00:04.6]} 78... Ra1+ {[%clk 0:00:10.1]} 79.
Kd2 {[%clk 0:00:04.9]} 79... a3 {[%clk 0:00:09.1]} 80. c8=Q {[%clk 0:00:04.8]}
80... a2 {[%clk 0:00:08.4]} 81. Qc6+ {[%clk 0:00:04.6]} 81... Bd5 {[%clk
0:00:08.9]} 82. Qc2+ {[%clk 0:00:04.3]} 82... Kxf4 {[%clk 0:00:08.3]} 83. Ra6
{[%clk 0:00:04.2]} 83... Be4 {[%clk 0:00:07.5]} 84. Qxa2 {[%clk 0:00:03.8]}
84... Rxa2+ {[%clk 0:00:07.1]} 85. Rxa2 {[%clk 0:00:04.7]} 85... Kg3 {[%clk
0:00:06.9]} 86. Rb2 {[%clk 0:00:05.2]} 86... f4 {[%clk 0:00:07.1]} 87. e6 {[%clk
0:00:05.4]} 87... fxe6 {[%clk 0:00:06.6]} 88. Be5 {[%clk 0:00:06]} 88... Kg4
{[%clk 0:00:06.1]} 89. Kc3 {[%clk 0:00:06.7]} 89... f3 {[%clk 0:00:06.1]} 90.
Rf2 {[%clk 0:00:07.2]} 90... Kxg5 {[%clk 0:00:06.2]} 91. Kd4 {[%clk 0:00:07.5]}
91... Bd5 {[%clk 0:00:05.9]} 92. Ke3 {[%clk 0:00:07.9]} 92... Kf5 {[%clk
0:00:06.4]} 93. Bg3 {[%clk 0:00:07.8]} 93... g5 {[%clk 0:00:06.9]} 94. Rxf3+
{[%clk 0:00:08.2]} 94... Bxf3 {[%clk 0:00:06.4]} 95. Kxf3 {[%clk 0:00:09.1]}
95... g4+ {[%clk 0:00:06.8]} 96. Ke3 {[%clk 0:00:09.4]} 96... e5 {[%clk
0:00:07]} 97. Bh2 {[%clk 0:00:10]} 97... e4 {[%clk 0:00:05.3]} 98. Bg3 {[%clk
0:00:10.2]} 98... Ke6 {[%clk 0:00:05.4]} 99. Kxe4 {[%clk 0:00:10.9]} 99... Kd7
{[%clk 0:00:05.8]} 100. Kf5 {[%clk 0:00:11.1]} 100... Kc6 {[%clk 0:00:05.6]}
101. Kxg4 {[%clk 0:00:11.9]} 101... Kd5 {[%clk 0:00:06]} 102. Bf2 {[%clk
0:00:12.8]} 102... Kc4 {[%clk 0:00:06.5]} 103. Bc5 {[%clk 0:00:13.7]} 103... Kd5
{[%clk 0:00:06.4]} 104. Kf5 {[%clk 0:00:14.6]} 104... Kc4 {[%clk 0:00:06.2]}
105. Ke6 {[%clk 0:00:15.5]} 105... Kc3 {[%clk 0:00:06.7]} 106. Kd6 {[%clk
0:00:16.4]} 106... Kc4 {[%clk 0:00:07.2]} 107. Kc6 {[%clk 0:00:17.3]} 107... Kd3
{[%clk 0:00:07.4]} 108. Kxb5 {[%clk 0:00:18.2]} 1-0